[Event "Titled Tuesday Blitz September 21 2021"]
[White "Krivonosov, Oleg"]
[Black "Perez Ponsa, Federico"]
[WhiteFideId "11600349"]
[BlackFideId "117927"]
[WhiteElo "2469"]
[BlackElo "2672"]
[Result "1-0"]
[Round "07"]
[TimeControl "180+1"]
[Date "2021.09.21"]
[WhiteClock "0:01:34"]
[BlackClock "0:01:35"]

1. Nf3 {[%clk 0:03:00]}  c5 {[%clk 0:02:54]} 2. c4 {[%clk 0:03:00]}  Nc6 {[%clk 0:02:52]} 3. d4 {[%clk 0:02:59]}  cxd4 {[%clk 0:02:52]} 4. Nxd4 {[%clk 0:02:59]}  Nf6 {[%clk 0:02:52]} 5. Nc3 {[%clk 0:02:58]}  e6 {[%clk 0:02:52]} 6. Bf4 {[%clk 0:02:57]}  Bb4 {[%clk 0:02:49]} 7. Nb5 {[%clk 0:02:56]}  O-O {[%clk 0:02:42]} 8. Bd6 {[%clk 0:02:54]}  Bxd6 {[%clk 0:02:40]} 9. Nxd6 {[%clk 0:02:55]}  b6 {[%clk 0:02:29]} 10. e3 {[%clk 0:02:52]}  Ba6 {[%clk 0:02:28]} 11. Be2 {[%clk 0:02:50]}  Ne8 {[%clk 0:02:25]} 12. Nxe8 {[%clk 0:02:49]}  Rxe8 {[%clk 0:02:25]} 13. O-O {[%clk 0:02:48]}  Rc8 {[%clk 0:02:21]} 14. Rc1 {[%clk 0:02:43]}  f5 {[%clk 0:02:19]} 15. b3 {[%clk 0:02:40]}  Qe7 {[%clk 0:02:17]} 16. Qd2 {[%clk 0:02:37]}  Red8 {[%clk 0:02:16]} 17. f4 {[%clk 0:02:30]}  Bb7 {[%clk 0:02:15]} 18. Bf3 {[%clk 0:02:29]}  g5 {[%clk 0:02:09]} 19. g3 {[%clk 0:02:26]}  g4 {[%clk 0:02:09]} 20. Bg2 {[%clk 0:02:25]}  h5 {[%clk 0:02:09]} 21. e4 {[%clk 0:02:18]}  h4 {[%clk 0:01:55]} 22. exf5 {[%clk 0:02:13]}  exf5 {[%clk 0:01:56]} 23. Rfe1 {[%clk 0:02:05]}  Qc5+ {[%clk 0:01:56]} 24. Qf2 {[%clk 0:02:03]}  h3 {[%clk 0:01:43]} 25. Bd5+ {[%clk 0:01:55]}  Kg7 {[%clk 0:01:35]} 26. Qxc5 {[%clk 0:01:34]} 1-0


[Site "https://www.chess.com"]

[Event "Titled Tuesday Blitz September 21 2021"]
[White "Krysa, Leandro"]
[Black "Belenkaya, Dina"]
[WhiteFideId "116807"]
[BlackFideId "24142654"]
[WhiteElo "2490"]
[BlackElo "2247"]
[Result "0-1"]
[Round "07"]
[TimeControl "180+1"]
[Date "2021.09.21"]
[WhiteClock "0:00:54"]
[BlackClock "0:00:19"]

1. e4 {[%clk 0:03:00]}  d5 {[%clk 0:02:59]} 2. exd5 {[%clk 0:03:00]}  Qxd5 {[%clk 0:03:00]} 3. Nf3 {[%clk 0:03:01]}  Bg4 {[%clk 0:02:56]} 4. Be2 {[%clk 0:03:00]}  Nc6 {[%clk 0:02:53]} 5. d4 {[%clk 0:02:58]}  O-O-O {[%clk 0:02:45]} 6. c4 {[%clk 0:02:53]}  Qd7 {[%clk 0:02:10]} 7. d5 {[%clk 0:02:21]}  Bxf3 {[%clk 0:02:07]} 8. gxf3 {[%clk 0:02:18]}  Ne5 {[%clk 0:02:08]} 9. Nc3 {[%clk 0:01:58]}  Nf6 {[%clk 0:02:04]} 10. Be3 {[%clk 0:01:46]}  a6 {[%clk 0:02:02]} 11. Qd4 {[%clk 0:01:37]}  Nc6 {[%clk 0:01:54]} 12. Qc5 {[%clk 0:01:22]}  Nb8 {[%clk 0:01:40]} 13. Qa7 {[%clk 0:00:54]}  e6 {[%clk 0:00:19]} 0-1


[Site "https://www.chess.com"]

[Event "Titled Tuesday Blitz September 21 2021"]
[White "Lamaze, Simon"]
[Black "Sharma, Dinesh K."]
[WhiteFideId "36069264"]
[BlackFideId "5004110"]
[WhiteElo "1999"]
[BlackElo "2392"]
[Result "0-1"]
[Round "07"]
[TimeControl "180+1"]
[Date "2021.09.21"]
[WhiteClock "0:00:49"]
[BlackClock "0:01:51"]

1. d4 {[%clk 0:02:56]}  d5 {[%clk 0:02:59]} 2. Nf3 {[%clk 0:02:48]}  Nf6 {[%clk 0:02:58]} 3. g3 {[%clk 0:02:40]}  c6 {[%clk 0:02:56]} 4. c4 {[%clk 0:02:36]}  Bf5 {[%clk 0:02:52]} 5. Nc3 {[%clk 0:02:34]}  e6 {[%clk 0:02:51]} 6. Qb3 {[%clk 0:02:33]}  Qb6 {[%clk 0:02:49]} 7. c5 {[%clk 0:02:32]}  Qc7 {[%clk 0:02:45]} 8. Bf4 {[%clk 0:02:29]}  Qc8 {[%clk 0:02:45]} 9. Bg2 {[%clk 0:02:25]}  Nbd7 {[%clk 0:02:46]} 10. O-O {[%clk 0:02:23]}  b6 {[%clk 0:02:44]} 11. cxb6 {[%clk 0:02:21]}  axb6 {[%clk 0:02:45]} 12. Ne5 {[%clk 0:02:21]}  Be7 {[%clk 0:02:42]} 13. Rfc1 {[%clk 0:02:15]}  c5 {[%clk 0:02:33]} 14. Nb5 {[%clk 0:02:08]}  O-O {[%clk 0:02:29]} 15. a4 {[%clk 0:01:55]}  c4 {[%clk 0:02:25]} 16. Qd1 {[%clk 0:01:50]}  h6 {[%clk 0:02:25]} 17. b3 {[%clk 0:01:48]}  Nxe5 {[%clk 0:02:24]} 18. dxe5 {[%clk 0:01:46]}  Ne4 {[%clk 0:02:23]} 19. bxc4 {[%clk 0:01:46]}  dxc4 {[%clk 0:02:24]} 20. Nd6 {[%clk 0:01:30]}  Bxd6 {[%clk 0:02:14]} 21. exd6 {[%clk 0:01:23]}  Qc5 {[%clk 0:02:09]} 22. Be3 {[%clk 0:01:03]}  Qc6 {[%clk 0:02:05]} 23. Qd4 {[%clk 0:00:49]}  Rac8 {[%clk 0:01:51]} 0-1


[Site "https://www.chess.com"]

[Event "Titled Tuesday Blitz September 21 2021"]
[White "Lashkin, Jegor"]
[Black "Suarez Gomez, Julio"]
[WhiteFideId "13907808"]
[BlackFideId "22275991"]
[WhiteElo "2293"]
[BlackElo "2376"]
[Result "1-0"]
[Round "07"]
[TimeControl "180+1"]
[Date "2021.09.21"]
[WhiteClock "0:01:02"]
[BlackClock "0:01:45"]

1. d4 {[%clk 0:03:00]}  e6 {[%clk 0:03:00]} 2. c4 {[%clk 0:03:00]}  d5 {[%clk 0:03:01]} 3. Nf3 {[%clk 0:02:58]}  Nf6 {[%clk 0:03:01]} 4. Nc3 {[%clk 0:02:58]}  dxc4 {[%clk 0:03:00]} 5. e4 {[%clk 0:02:57]}  Bb4 {[%clk 0:03:00]} 6. Bxc4 {[%clk 0:02:56]}  Nxe4 {[%clk 0:03:00]} 7. O-O {[%clk 0:02:56]}  Nf6 {[%clk 0:02:49]} 8. Qa4+ {[%clk 0:02:54]}  Nc6 {[%clk 0:02:49]} 9. Ne5 {[%clk 0:02:54]}  Rb8 {[%clk 0:02:50]} 10. Nxc6 {[%clk 0:02:44]}  bxc6 {[%clk 0:02:51]} 11. Qxc6+ {[%clk 0:02:38]}  Bd7 {[%clk 0:02:48]} 12. Qf3 {[%clk 0:02:37]}  O-O {[%clk 0:02:43]} 13. Rd1 {[%clk 0:02:35]}  Bc8 {[%clk 0:02:39]} 14. Bg5 {[%clk 0:02:15]}  Be7 {[%clk 0:02:39]} 15. d5 {[%clk 0:02:10]}  e5 {[%clk 0:02:26]} 16. h3 {[%clk 0:01:53]}  Rxb2 {[%clk 0:02:23]} 17. Bb3 {[%clk 0:01:52]}  e4 {[%clk 0:02:20]} 18. Qe3 {[%clk 0:01:42]}  Ng4 {[%clk 0:02:15]} 19. Bxe7 {[%clk 0:01:32]}  Nxe3 {[%clk 0:02:02]} 20. Bxd8 {[%clk 0:01:28]}  Nxd1 {[%clk 0:01:55]} 21. Nxd1 {[%clk 0:01:22]}  Rxb3 {[%clk 0:01:45]} 22. axb3 {[%clk 0:01:02]} 1-0


[Site "https://www.chess.com"]

[Event "Titled Tuesday Blitz September 21 2021"]
[White "Leitao, Rafael"]
[Black "Herrera Reyes, Jose Antonio"]
[WhiteFideId "2101246"]
[BlackFideId "2274914"]
[WhiteElo "2609"]
[BlackElo "2361"]
[Result "0-1"]
[Round "07"]
[TimeControl "180+1"]
[Date "2021.09.21"]
[WhiteClock "0:00:14"]
[BlackClock "0:00:28"]

1. c4 {[%clk 0:02:52]}  Nf6 {[%clk 0:02:57]} 2. Nc3 {[%clk 0:02:51]}  g6 {[%clk 0:02:52]} 3. g3 {[%clk 0:02:49]}  d6 {[%clk 0:02:45]} 4. Bg2 {[%clk 0:02:49]}  Bg7 {[%clk 0:02:43]} 5. d4 {[%clk 0:02:49]}  h5 {[%clk 0:02:42]} 6. Nf3 {[%clk 0:02:49]}  Nc6 {[%clk 0:02:41]} 7. Bf4 {[%clk 0:02:43]}  h4 {[%clk 0:02:40]} 8. d5 {[%clk 0:02:41]}  h3 {[%clk 0:02:34]} 9. Bf1 {[%clk 0:02:38]}  Nb8 {[%clk 0:02:34]} 10. e4 {[%clk 0:02:30]}  Nbd7 {[%clk 0:02:29]} 11. Be2 {[%clk 0:02:29]}  Nc5 {[%clk 0:02:29]} 12. Qc2 {[%clk 0:02:21]}  a5 {[%clk 0:02:20]} 13. O-O {[%clk 0:02:16]}  a4 {[%clk 0:02:14]} 14. Rad1 {[%clk 0:02:12]}  O-O {[%clk 0:02:12]} 15. Ng5 {[%clk 0:02:08]}  e5 {[%clk 0:02:01]} 16. dxe6 {[%clk 0:02:06]}  Nxe6 {[%clk 0:02:00]} 17. Nxe6 {[%clk 0:01:59]}  Bxe6 {[%clk 0:02:01]} 18. e5 {[%clk 0:01:59]}  Ne8 {[%clk 0:01:55]} 19. Nb5 {[%clk 0:01:40]}  g5 {[%clk 0:01:33]} 20. Be3 {[%clk 0:01:24]}  Bxe5 {[%clk 0:01:21]} 21. f4 {[%clk 0:00:43]}  gxf4 {[%clk 0:00:53]} 22. Bxf4 {[%clk 0:00:14]}  Bg7 {[%clk 0:00:28]} 0-1


[Site "https://www.chess.com"]

[Event "Titled Tuesday Blitz September 21 2021"]
[White "Madaminov, Mukhiddin"]
[Black "Savchenko, Boris"]
[WhiteFideId "14210703"]
[BlackFideId "4147332"]
[WhiteElo "1855"]
[BlackElo "2543"]
[Result "0-1"]
[Round "07"]
[TimeControl "180+1"]
[Date "2021.09.21"]
[WhiteClock "0:00:21"]
[BlackClock "0:00:44"]

1. e4 {[%clk 0:03:00]}  c5 {[%clk 0:02:59]} 2. Nc3 {[%clk 0:03:01]}  Nc6 {[%clk 0:02:56]} 3. Nf3 {[%clk 0:03:02]}  g6 {[%clk 0:02:57]} 4. d4 {[%clk 0:03:02]}  cxd4 {[%clk 0:02:57]} 5. Nxd4 {[%clk 0:03:03]}  Bg7 {[%clk 0:02:58]} 6. Be3 {[%clk 0:03:03]}  Nf6 {[%clk 0:02:58]} 7. Nxc6 {[%clk 0:03:03]}  bxc6 {[%clk 0:02:58]} 8. e5 {[%clk 0:03:04]}  Ng8 {[%clk 0:02:58]} 9. Bd4 {[%clk 0:03:04]}  Qa5 {[%clk 0:02:55]} 10. e6 {[%clk 0:03:01]}  Nf6 {[%clk 0:02:54]} 11. exf7+ {[%clk 0:02:56]}  Kxf7 {[%clk 0:02:54]} 12. Bc4+ {[%clk 0:02:56]}  d5 {[%clk 0:02:54]} 13. Bb3 {[%clk 0:02:54]}  e5 {[%clk 0:02:47]} 14. Bxe5 {[%clk 0:02:51]}  Re8 {[%clk 0:02:46]} 15. f4 {[%clk 0:02:48]}  Ng4 {[%clk 0:02:46]} 16. O-O {[%clk 0:02:34]}  Qc5+ {[%clk 0:02:30]} 17. Kh1 {[%clk 0:02:34]}  Ne3 {[%clk 0:02:30]} 18. Ne4 {[%clk 0:02:17]}  Qb4 {[%clk 0:02:27]} 19. Nd6+ {[%clk 0:02:10]}  Qxd6 {[%clk 0:02:24]} 20. Bxd6 {[%clk 0:02:09]}  Nxd1 {[%clk 0:02:24]} 21. Raxd1 {[%clk 0:02:07]}  Ba6 {[%clk 0:02:24]} 22. Rfe1 {[%clk 0:01:57]}  Bxb2 {[%clk 0:02:22]} 23. Bb4 {[%clk 0:01:41]}  Be2 {[%clk 0:01:58]} 24. Rxd5 {[%clk 0:01:30]}  cxd5 {[%clk 0:01:15]} 25. Bxd5+ {[%clk 0:01:13]}  Kf6 {[%clk 0:01:12]} 26. Bxa8 {[%clk 0:00:21]}  a5 {[%clk 0:00:44]} 0-1


[Site "https://www.chess.com"]

[Event "Titled Tuesday Blitz September 21 2021"]
[White "Manafov, Vugar"]
[Black "Sarana, Alexey"]
[WhiteFideId "13410814"]
[BlackFideId "24133795"]
[WhiteElo "2274"]
[BlackElo "2671"]
[Result "0-1"]
[Round "07"]
[TimeControl "180+1"]
[Date "2021.09.21"]
[WhiteClock "0:02:08"]
[BlackClock "0:01:23"]

1. Nf3 {[%clk 0:03:00]}  c5 {[%clk 0:02:19]} 2. g3 {[%clk 0:02:59]}  Nc6 {[%clk 0:02:20]} 3. Bg2 {[%clk 0:02:59]}  g6 {[%clk 0:02:20]} 4. O-O {[%clk 0:02:59]}  Bg7 {[%clk 0:02:21]} 5. d3 {[%clk 0:03:00]}  e6 {[%clk 0:02:17]} 6. Nc3 {[%clk 0:02:57]}  Nge7 {[%clk 0:02:14]} 7. e4 {[%clk 0:02:54]}  O-O {[%clk 0:02:12]} 8. Nd2 {[%clk 0:02:53]}  d5 {[%clk 0:02:10]} 9. f4 {[%clk 0:02:50]}  f5 {[%clk 0:02:07]} 10. exd5 {[%clk 0:02:41]}  exd5 {[%clk 0:02:08]} 11. Nf3 {[%clk 0:02:40]}  d4 {[%clk 0:02:07]} 12. Nb5 {[%clk 0:02:39]}  Nd5 {[%clk 0:01:58]} 13. Re1 {[%clk 0:02:25]}  a6 {[%clk 0:01:48]} 14. Na3 {[%clk 0:02:23]}  b5 {[%clk 0:01:47]} 15. Ng5 {[%clk 0:02:13]}  Qd6 {[%clk 0:01:36]} 16. Qf3 {[%clk 0:02:08]}  Ndb4 {[%clk 0:01:23]} 0-1


[Site "https://www.chess.com"]

[Event "Titled Tuesday Blitz September 21 2021"]
[White "Manukyan, Sargis A."]
[Black "Pg, Mohd Omar Ak Hira"]
[WhiteFideId "13303970"]
[BlackFideId "10500103"]
[WhiteElo "2187"]
[BlackElo "2184"]
[Result "1/2-1/2"]
[Round "07"]
[TimeControl "180+1"]
[Date "2021.09.21"]
[WhiteClock "0:02:33"]
[BlackClock "0:00:34"]

1. d4 {[%clk 0:03:00]}  Nf6 {[%clk 0:02:59]} 2. e3 {[%clk 0:02:57]}  g6 {[%clk 0:02:59]} 3. Nf3 {[%clk 0:02:58]}  Bg7 {[%clk 0:02:59]} 4. Be2 {[%clk 0:02:59]}  O-O {[%clk 0:02:59]} 5. O-O {[%clk 0:02:59]}  d5 {[%clk 0:02:59]} 6. b3 {[%clk 0:02:58]}  c5 {[%clk 0:02:56]} 7. Bb2 {[%clk 0:02:59]}  Ne4 {[%clk 0:02:52]} 8. Nbd2 {[%clk 0:02:58]}  Nc6 {[%clk 0:02:49]} 9. Nxe4 {[%clk 0:02:58]}  dxe4 {[%clk 0:02:48]} 10. Ne5 {[%clk 0:02:58]}  cxd4 {[%clk 0:02:32]} 11. Nxc6 {[%clk 0:02:56]}  bxc6 {[%clk 0:02:32]} 12. Bxd4 {[%clk 0:02:56]}  Bxd4 {[%clk 0:02:16]} 13. Qxd4 {[%clk 0:02:56]}  Qxd4 {[%clk 0:01:52]} 14. exd4 {[%clk 0:02:57]}  e5 {[%clk 0:01:52]} 15. dxe5 {[%clk 0:02:56]}  Re8 {[%clk 0:01:53]} 16. Rfd1 {[%clk 0:02:55]}  Rxe5 {[%clk 0:01:38]} 17. Rd8+ {[%clk 0:02:54]}  Kg7 {[%clk 0:01:37]} 18. Rad1 {[%clk 0:02:51]}  Bb7 {[%clk 0:01:36]} 19. Rxa8 {[%clk 0:02:47]}  Bxa8 {[%clk 0:01:36]} 20. Rd8 {[%clk 0:02:48]}  Bb7 {[%clk 0:01:32]} 21. Rd7 {[%clk 0:02:48]}  Bc8 {[%clk 0:01:32]} 22. Rxa7 {[%clk 0:02:49]}  Rc5 {[%clk 0:01:32]} 23. Bc4 {[%clk 0:02:47]}  Rf5 {[%clk 0:01:00]} 24. Rc7 {[%clk 0:02:44]}  Ra5 {[%clk 0:00:52]} 25. Rxc8 {[%clk 0:02:33]}  Rxa2 {[%clk 0:00:34]} 1/2-1/2


[Site "https://www.chess.com"]

[Event "Titled Tuesday Blitz September 21 2021"]
[White "Martinez Alcantara, Jose Eduardo"]
[Black "Moksh Amit Doshi"]
[WhiteFideId "3805662"]
[BlackFideId "25064967"]
[WhiteElo "2690"]
[BlackElo "2245"]
[Result "1-0"]
[Round "07"]
[TimeControl "180+1"]
[Date "2021.09.21"]
[WhiteClock "0:01:06"]
[BlackClock "0:01:21"]

1. e4 {[%clk 0:03:00]}  e5 {[%clk 0:02:59]} 2. Nf3 {[%clk 0:03:00]}  Nc6 {[%clk 0:02:59]} 3. Bb5 {[%clk 0:03:01]}  a6 {[%clk 0:03:00]} 4. Bxc6 {[%clk 0:03:01]}  dxc6 {[%clk 0:03:00]} 5. d3 {[%clk 0:03:02]}  Bd6 {[%clk 0:02:57]} 6. Nbd2 {[%clk 0:03:02]}  Be6 {[%clk 0:02:55]} 7. Qe2 {[%clk 0:03:01]}  f6 {[%clk 0:02:50]} 8. O-O {[%clk 0:03:01]}  Ne7 {[%clk 0:02:46]} 9. Nc4 {[%clk 0:02:59]}  O-O {[%clk 0:02:41]} 10. h3 {[%clk 0:02:55]}  c5 {[%clk 0:02:41]} 11. Nh4 {[%clk 0:02:48]}  Nc6 {[%clk 0:02:38]} 12. c3 {[%clk 0:02:48]}  b5 {[%clk 0:02:33]} 13. Ne3 {[%clk 0:02:45]}  g6 {[%clk 0:02:30]} 14. Nd5 {[%clk 0:02:38]}  f5 {[%clk 0:02:27]} 15. Nf3 {[%clk 0:02:37]}  f4 {[%clk 0:02:25]} 16. Rd1 {[%clk 0:02:26]}  Qe8 {[%clk 0:02:13]} 17. b3 {[%clk 0:02:12]}  h6 {[%clk 0:02:11]} 18. Bb2 {[%clk 0:01:52]}  g5 {[%clk 0:02:07]} 19. Nh2 {[%clk 0:01:52]}  h5 {[%clk 0:02:03]} 20. f3 {[%clk 0:01:34]}  c4 {[%clk 0:01:45]} 21. dxc4 {[%clk 0:01:23]}  Bc5+ {[%clk 0:01:21]} 22. Kh1 {[%clk 0:01:06]} 1-0


[Site "https://www.chess.com"]

[Event "Titled Tuesday Blitz September 21 2021"]
[White "Martinovici, Ilia"]
[Black "Kovalev, Vladislav"]
[WhiteFideId "13907034"]
[BlackFideId "13504398"]
[WhiteElo "2303"]
[BlackElo "2573"]
[Result "0-1"]
[Round "07"]
[TimeControl "180+1"]
[Date "2021.09.21"]
[WhiteClock "0:01:53"]
[BlackClock "0:01:48"]

1. d4 {[%clk 0:03:00]}  Nf6 {[%clk 0:02:57]} 2. c4 {[%clk 0:03:00]}  g6 {[%clk 0:02:58]} 3. Nc3 {[%clk 0:03:00]}  Bg7 {[%clk 0:02:58]} 4. e4 {[%clk 0:03:00]}  d6 {[%clk 0:02:59]} 5. f3 {[%clk 0:03:00]}  O-O {[%clk 0:03:00]} 6. Bg5 {[%clk 0:03:01]}  c5 {[%clk 0:03:00]} 7. d5 {[%clk 0:03:01]}  b5 {[%clk 0:03:01]} 8. Nxb5 {[%clk 0:03:00]}  Qb6 {[%clk 0:02:55]} 9. Qd2 {[%clk 0:02:57]}  h6 {[%clk 0:02:51]} 10. Be3 {[%clk 0:02:54]}  e6 {[%clk 0:02:46]} 11. Nc3 {[%clk 0:02:44]}  exd5 {[%clk 0:02:46]} 12. cxd5 {[%clk 0:02:43]}  Nbd7 {[%clk 0:02:38]} 13. Nh3 {[%clk 0:02:40]}  Ne5 {[%clk 0:02:31]} 14. Nf2 {[%clk 0:02:40]}  Nh5 {[%clk 0:02:25]} 15. Be2 {[%clk 0:02:32]}  f5 {[%clk 0:02:23]} 16. exf5 {[%clk 0:02:29]}  gxf5 {[%clk 0:02:12]} 17. f4 {[%clk 0:02:24]}  Ng4 {[%clk 0:02:12]} 18. Nxg4 {[%clk 0:02:22]}  fxg4 {[%clk 0:02:13]} 19. O-O {[%clk 0:02:16]}  Bf5 {[%clk 0:02:13]} 20. Rae1 {[%clk 0:01:52]}  Rae8 {[%clk 0:02:07]} 21. Nd1 {[%clk 0:01:53]}  Qb4 {[%clk 0:01:48]} 0-1


[Site "https://www.chess.com"]

[Event "Titled Tuesday Blitz September 21 2021"]
[White "Meduri, Aakaash"]
[Black "Demin, Vladimir"]
[WhiteFideId "2032252"]
[BlackFideId "4167457"]
[WhiteElo "2047"]
[BlackElo "2507"]
[Result "1-0"]
[Round "07"]
[TimeControl "180+1"]
[Date "2021.09.21"]
[WhiteClock "0:01:17"]
[BlackClock "0:01:40"]

1. d4 {[%clk 0:03:00]}  Nf6 {[%clk 0:02:55]} 2. Bg5 {[%clk 0:02:59]}  d5 {[%clk 0:02:54]} 3. e3 {[%clk 0:02:59]}  Nbd7 {[%clk 0:02:53]} 4. Bd3 {[%clk 0:02:57]}  e6 {[%clk 0:02:53]} 5. Nd2 {[%clk 0:02:56]}  b6 {[%clk 0:02:53]} 6. Ngf3 {[%clk 0:02:54]}  Bb7 {[%clk 0:02:53]} 7. O-O {[%clk 0:02:53]}  Be7 {[%clk 0:02:53]} 8. c3 {[%clk 0:02:53]}  O-O {[%clk 0:02:53]} 9. Qa4 {[%clk 0:02:51]}  h6 {[%clk 0:02:53]} 10. Bh4 {[%clk 0:02:51]}  c5 {[%clk 0:02:52]} 11. Rae1 {[%clk 0:02:51]}  a6 {[%clk 0:02:50]} 12. Bb1 {[%clk 0:02:45]}  b5 {[%clk 0:02:51]} 13. Qc2 {[%clk 0:02:45]}  Rc8 {[%clk 0:02:50]} 14. Ne5 {[%clk 0:02:36]}  Re8 {[%clk 0:02:22]} 15. f4 {[%clk 0:02:12]}  Ne4 {[%clk 0:02:17]} 16. Nxe4 {[%clk 0:01:54]}  dxe4 {[%clk 0:02:12]} 17. Bxe7 {[%clk 0:01:53]}  Qxe7 {[%clk 0:02:11]} 18. Nxd7 {[%clk 0:01:53]}  Qxd7 {[%clk 0:02:12]} 19. g4 {[%clk 0:01:46]}  f5 {[%clk 0:02:10]} 20. Qg2 {[%clk 0:01:44]}  Qf7 {[%clk 0:01:53]} 21. g5 {[%clk 0:01:37]}  Qg6 {[%clk 0:01:40]} 22. gxh6 {[%clk 0:01:17]} 1-0


[Site "https://www.chess.com"]

[Event "Titled Tuesday Blitz September 21 2021"]
[White "Molina, Roberto Junio Brito"]
[Black "Markidis, Konstantinos"]
[WhiteFideId "2109450"]
[BlackFideId "4203500"]
[WhiteElo "2402"]
[BlackElo "2304"]
[Result "0-1"]
[Round "07"]
[TimeControl "180+1"]
[Date "2021.09.21"]
[WhiteClock "0:01:42"]
[BlackClock "0:01:06"]

1. e4 {[%clk 0:03:00]}  e6 {[%clk 0:02:59]} 2. d4 {[%clk 0:02:59]}  d5 {[%clk 0:02:59]} 3. Nd2 {[%clk 0:02:58]}  Be7 {[%clk 0:02:59]} 4. Ngf3 {[%clk 0:02:58]}  Nf6 {[%clk 0:02:59]} 5. e5 {[%clk 0:02:58]}  Nfd7 {[%clk 0:02:59]} 6. c3 {[%clk 0:02:58]}  c5 {[%clk 0:02:59]} 7. Bd3 {[%clk 0:02:58]}  b6 {[%clk 0:02:59]} 8. Qe2 {[%clk 0:02:56]}  a5 {[%clk 0:02:59]} 9. O-O {[%clk 0:02:55]}  Ba6 {[%clk 0:02:59]} 10. c4 {[%clk 0:02:54]}  Nc6 {[%clk 0:02:49]} 11. cxd5 {[%clk 0:02:54]}  Bxd3 {[%clk 0:02:49]} 12. Qxd3 {[%clk 0:02:55]}  Nb4 {[%clk 0:02:46]} 13. Qe2 {[%clk 0:02:54]}  Nxd5 {[%clk 0:02:46]} 14. dxc5 {[%clk 0:02:48]}  Nxc5 {[%clk 0:02:45]} 15. Nc4 {[%clk 0:02:41]}  O-O {[%clk 0:02:43]} 16. Rd1 {[%clk 0:02:40]}  Qc7 {[%clk 0:02:39]} 17. Be3 {[%clk 0:02:32]}  Nxe3 {[%clk 0:02:17]} 18. Qxe3 {[%clk 0:02:23]}  Rfd8 {[%clk 0:02:15]} 19. b3 {[%clk 0:02:18]}  Rxd1+ {[%clk 0:02:08]} 20. Rxd1 {[%clk 0:02:18]}  Rd8 {[%clk 0:02:08]} 21. Rd4 {[%clk 0:02:16]}  f6 {[%clk 0:01:47]} 22. exf6 {[%clk 0:02:10]}  Bxf6 {[%clk 0:01:47]} 23. Rxd8+ {[%clk 0:01:57]}  Qxd8 {[%clk 0:01:44]} 24. g3 {[%clk 0:01:53]}  Qc7 {[%clk 0:01:22]} 25. h4 {[%clk 0:01:42]}  h6 {[%clk 0:01:06]} 0-1


[Site "https://www.chess.com"]

[Event "Titled Tuesday Blitz September 21 2021"]
[White "Petriashvili, Nikoloz"]
[Black "Levitskiy, Andrey"]
[WhiteFideId "13611216"]
[BlackFideId "14132885"]
[WhiteElo "2430"]
[BlackElo "2340"]
[Result "0-1"]
[Round "07"]
[TimeControl "180+1"]
[Date "2021.09.21"]
[WhiteClock "0:02:05"]
[BlackClock "0:01:29"]

1. e4 {[%clk 0:03:00]}  e6 {[%clk 0:02:58]} 2. d4 {[%clk 0:02:59]}  d5 {[%clk 0:02:59]} 3. Nd2 {[%clk 0:03:00]}  c5 {[%clk 0:02:59]} 4. Ngf3 {[%clk 0:03:00]}  cxd4 {[%clk 0:02:59]} 5. Nxd4 {[%clk 0:02:58]}  Nc6 {[%clk 0:02:59]} 6. Nxc6 {[%clk 0:02:59]}  bxc6 {[%clk 0:02:59]} 7. Bd3 {[%clk 0:02:59]}  Nf6 {[%clk 0:02:57]} 8. O-O {[%clk 0:03:00]}  Bd6 {[%clk 0:02:57]} 9. b3 {[%clk 0:03:00]}  Be5 {[%clk 0:02:55]} 10. Rb1 {[%clk 0:02:59]}  O-O {[%clk 0:02:53]} 11. f4 {[%clk 0:02:59]}  Bd4+ {[%clk 0:02:48]} 12. Kh1 {[%clk 0:03:00]}  e5 {[%clk 0:02:46]} 13. exd5 {[%clk 0:02:56]}  Ng4 {[%clk 0:02:38]} 14. Nf3 {[%clk 0:02:36]}  Nf2+ {[%clk 0:02:13]} 15. Rxf2 {[%clk 0:02:36]}  Bxf2 {[%clk 0:02:13]} 16. Qe2 {[%clk 0:02:09]}  Bc5 {[%clk 0:02:00]} 17. Nxe5 {[%clk 0:02:06]}  cxd5 {[%clk 0:01:51]} 18. Be3 {[%clk 0:02:05]}  d4 {[%clk 0:01:41]} 19. Bd2 {[%clk 0:02:05]}  Bb7 {[%clk 0:01:29]} 0-1


[Site "https://www.chess.com"]

[Event "Titled Tuesday Blitz September 21 2021"]
[White "Petrovskyi, Vadym"]
[Black "Kubicka, Anna"]
[WhiteFideId "14165210"]
[BlackFideId "1152254"]
[WhiteElo "2334"]
[BlackElo "1986"]
[Result "0-1"]
[Round "07"]
[TimeControl "180+1"]
[Date "2021.09.21"]
[WhiteClock "0:01:20"]
[BlackClock "0:01:24"]

1. e4 {[%clk 0:03:00]}  c5 {[%clk 0:02:59]} 2. Nf3 {[%clk 0:03:00]}  d6 {[%clk 0:03:00]} 3. d4 {[%clk 0:03:00]}  cxd4 {[%clk 0:03:01]} 4. Nxd4 {[%clk 0:02:59]}  Nf6 {[%clk 0:03:01]} 5. Nc3 {[%clk 0:02:58]}  a6 {[%clk 0:03:02]} 6. Bg5 {[%clk 0:02:58]}  Nbd7 {[%clk 0:03:02]} 7. f4 {[%clk 0:02:57]}  Qc7 {[%clk 0:03:02]} 8. Qf3 {[%clk 0:02:57]}  h6 {[%clk 0:03:03]} 9. Bh4 {[%clk 0:02:56]}  g5 {[%clk 0:03:03]} 10. fxg5 {[%clk 0:02:57]}  hxg5 {[%clk 0:03:04]} 11. Bxg5 {[%clk 0:02:58]}  Qc5 {[%clk 0:03:04]} 12. Be3 {[%clk 0:02:58]}  Ne5 {[%clk 0:03:04]} 13. Qe2 {[%clk 0:02:58]}  Neg4 {[%clk 0:03:03]} 14. Bg1 {[%clk 0:02:58]}  Qg5 {[%clk 0:03:03]} 15. Nf3 {[%clk 0:02:46]}  Qa5 {[%clk 0:03:00]} 16. O-O-O {[%clk 0:02:42]}  Be6 {[%clk 0:02:55]} 17. Kb1 {[%clk 0:02:39]}  Rc8 {[%clk 0:02:54]} 18. Nd4 {[%clk 0:02:09]}  Rxc3 {[%clk 0:02:50]} 19. Nxe6 {[%clk 0:02:08]}  fxe6 {[%clk 0:02:40]} 20. bxc3 {[%clk 0:02:06]}  Qxc3 {[%clk 0:02:41]} 21. Bd4 {[%clk 0:01:53]}  Qb4+ {[%clk 0:02:37]} 22. Ka1 {[%clk 0:01:50]}  e5 {[%clk 0:02:26]} 23. Bb2 {[%clk 0:01:47]}  Qxe4 {[%clk 0:02:08]} 24. Re1 {[%clk 0:01:25]}  Qxe2 {[%clk 0:01:48]} 25. Bxe2 {[%clk 0:01:20]}  Rxh2 {[%clk 0:01:24]} 0-1


[Site "https://www.chess.com"]